Cogmind - Beta 15 @@@ ROGUE MODE // 2025.09.11 @ 00:22:20 Player: Kotyk77 Result: Destroyed by X-62 Marksman with Gauss Rifle Performance ------------- Evolutions (2) 1000 Regions Visited (4) 800 Robots Destroyed (34) 170 Value Destroyed (1066) 1066 Prototype IDs (0) 0 Alien Tech Used (0) 0 Bonus (0) 0 TOTAL SCORE: 3036 Bonus ------- None Cogmind --------- Core Integrity 0/550 Matter 242/350 Energy 265/265 System Corruption 0% Temperature Cool (0) Movement Walking (120) Location -8/Materials Parts ------- > --- POWER (2) -------- Improved Ion Engine > --- PROPULSION (2) --- Carbon-fiber Leg Improved Carbon-fiber Leg > --- UTILITY (5) ------ Large Storage Unit Small Matter Pod Improved Targeting Computer Melee Analysis Suite > --- WEAPON (2) ------- Assault Cannon > --- INVENTORY (15) --- Improved Carbon-fiber Leg Improved Carbon-fiber Leg Compact Wheel Improved Heat Sink Huge Storage Unit Improved Sensor Array Recoil Stabilizer Energy Filter Energy Filter Utility Shielding Hardened Light Armor Plating Pulse Rifle Heavy Particle Cannon Peak State ------------ > --- POWER ------------ Improved Ion Engine Deuterium Engine > --- PROPULSION ------- Improved Carbon-fiber Leg Improved Carbon-fiber Leg > --- UTILITY ---------- Large Storage Unit Small Matter Pod Improved Targeting Computer Melee Analysis Suite > --- WEAPON ----------- High-powered Shotgun Blade Saw > --- INVENTORY -------- Carbon-fiber Leg Improved Carbon-fiber Leg Improved Carbon-fiber Leg Compact Wheel Improved Heat Sink Huge Storage Unit Improved Sensor Array Recoil Stabilizer Energy Filter Energy Filter Utility Shielding Hardened Light Armor Plating Pulse Rifle Heavy Particle Cannon Assault Cannon [Rating: 30] Favorites ----------- Power Light Ion Engine Engine Light Ion Engine Propulsion Aluminum Leg Leg Aluminum Leg Wheel Compact Wheel Utility Large Storage Unit Device Sensor Array Storage Large Storage Unit Processor Improved Targeting Computer Protection Utility Shielding Weapon Particle Gun Energy Gun Particle Gun Energy Cannon Particle Cannon Ballistic Gun High-powered Shotgun Ballistic Cannon Assault Cannon Launcher Mini Grenade Launcher Slashing Weapon Blade Saw Build | -11 -10 -9 -9 -8 ------- Run | Yrd Mat Mat Min Mat Slots Evolved 4 | . . 2 . 2 Power 1 | . . . . 1 Propulsion . | . . . . . Utility 3 | . . 2 . 1 Weapon . | . . . . . Parts Attached 51 | 6 4 7 6 28 Power 12 | 1 . 1 1 9 Engine 12 | 1 . 1 1 9 Core . | . . . . . Reactor . | . . . . . Propulsion 13 | 2 1 1 2 7 Treads . | . . . . . Leg 8 | 2 1 1 . 4 Wheel 5 | . . . 2 3 Hover . | . . . . . Flight . | . . . . . Utility 14 | 1 3 2 2 6 Device 2 | . 1 . . 1 Storage 5 | 1 2 1 . 1 Processor 3 | . . 1 1 1 Hackware . | . . . . . Protection 4 | . . . 1 3 Artifact . | . . . . . Weapon 12 | 2 . 3 1 6 Energy Gun 4 | 2 . 1 . 1 Energy Cannon 2 | . . . . 2 Ballistic Gun 3 | . . 2 . 1 Ballistic Cannon 1 | . . . . 1 Launcher 1 | . . . 1 . Special Weapon . | . . . . . Impact Weapon . | . . . . . Slashing Weapon 1 | . . . . 1 Piercing Weapon . | . . . . . Special Melee Weapon . | . . . . . Unidentified Prototypes . | . . . . . Parts Lost 25 | . . 8 . 17 Power 9 | . . 2 . 7 Propulsion 6 | . . 4 . 2 Utility 5 | . . 1 . 4 Weapon 5 | . . 1 . 4 Highest Loss Streak 7 | . . 7 . 4 To Critical Strikes . | . . . . . Average Backups 11 | 2 6 9 11 13 Power 1 | . 2 2 1 . Propulsion 2 | . 2 2 . 3 Utility 5 | . 1 2 7 8 Weapon 1 | . . 1 1 1 Tool/Special . | . . . . . Unused Backups 17 | . . . . 17 Power . | . . . . . Propulsion 4 | . . . . 4 Utility 12 | . . . . 12 Weapon 1 | . . . . 1 Tool/Special . | . . . . . Average Slot Usage (%) 94 | . 97 96 98 90 Engine 13 | . 14 10 11 15 Leg 13 | . 28 21 . 11 Wheel 6 | . . . 21 6 Device 5 | . 11 9 . 4 Storage 19 | . 14 21 22 18 Processor 10 | . . 11 15 10 Protection 4 | . . . 6 7 Energy Gun 11 | . 28 12 11 6 Energy Cannon 1 | . . . . 3 Ballistic Gun 3 | . . 8 . 2 Launcher 3 | . . . 10 2 Slashing Weapon 1 | . . . . 2 Peak Build Rating 30 | 6 8 12 13 30 Average Rating 15 | 4 6 10 12 22 On Entrance 6 | . 6 8 6 13 Naked Turns . | . . . . . Heaviest Build 42 | 12 28 31 29 42 Greatest Support 36 | 20 20 20 26 36 Greatest Overweight (x) 10 | . 1 7 1 10 Average Overweight (x) . | . . 1 1 . Largest Inventory Capacity 25 | 8 25 15 15 15 Average Capacity 14 | 7 12 15 15 15 Most Carried 15 | 4 10 11 13 15 Average Carried 11 | 2 6 9 11 13 Final Capacity 15 | 8 15 15 15 15 Final Carried 13 | 4 10 8 13 13 Class Distribution -------------------- 100% | Mutant Dominant Class ---------------- Mutant | -10/Materials Mutant | -9/Materials Mutant | -9/Mines Mutant | -8/Materials Resources | -11 -10 -9 -9 -8 ----------- Run | Yrd Mat Mat Min Mat Matter Collected 909 | 139 142 240 86 302 Remotely . | . . . . . Salvage Created 1013 | . 142 232 84 555 Parts 51 | . 5 8 4 34 Haulers Intercepted . | . . . . . Recyclers Shooed 1 | . . . . 1 Parts Field Recycled . | . . . . . Retrieved Matter . | . . . . . Parts Self-Destructed . | . . . . . Prevented . | . . . . . Kills | -11 -10 -9 -9 -8 ------- Run | Yrd Mat Mat Min Mat Combat Hostiles Destroyed 28 | . 3 5 2 18 Melee 2 | . . . . 2 Guns 14 | . 3 5 . 6 Cannons 3 | . . . . 3 AOE 9 | . . . 2 7 Classes Destroyed 9 | . 1 2 . 6 Worker 3 | . . 1 . 2 Tunneler 1 | . . . . 1 Watcher 2 | . . . . 2 Swarmer 7 | . . . . 7 Grunt 15 | . 3 4 2 6 Duelist 1 | . . 1 . . Sentry 3 | . . . . 3 Specialist 1 | . . . . 1 Hunter 1 | . . . . 1 Best Kill Streak 4 | . 3 3 2 4 Combat Bots Only 3 | . 3 2 2 3 Max Kills in Single Turn 3 | . 1 2 2 3 Gunslinging . | . . . . . Exploded 2 | . . . 2 2 Melee 1 | . . . . 1 Uniques/NPCs Destroyed . | . . . . . Combat | -11 -10 -9 -9 -8 -------- Run | Yrd Mat Mat Min Mat Hostile Shots Fired 285 | . 23 83 3 176 Missed 93 | . 3 34 1 55 Hits 192 | . 20 49 2 121 Melee 11 | . . 11 . . Projectile 181 | . 20 38 2 121 Critical Strikes 8 | . . 4 . 4 Damage Taken 3156 | . 223 811 166 1956 Core 868 | . 34 237 43 554 Absorbed by Shields . | . . . . . Redirected to Shielding 23 | . . . 7 16 Core Remaining (%) 72 | 100 86 . 30 . Volleys Fired 99 | . 8 33 3 55 Largest 2 | . 2 2 2 2 Hottest 140 | . 90 85 95 140 Shots Fired 156 | . 16 51 6 83 Gun 110 | . 16 51 3 40 Cannon 32 | . . . . 32 Launcher 14 | . . . 3 11 Special . | . . . . . Kinetic 50 | . . 36 . 14 Thermal 84 | . 8 15 3 58 Explosive 14 | . . . 3 11 Electromagnetic 8 | . 8 . . . Robot Hit Streak 17 | . 9 17 7 8 Robot Miss Streak 7 | . 2 3 . 7 Penetration Max . | . . . . . Secondary Targets 3 | . 2 1 . . Max Gunslinging Chain 1 | . 1 1 . . Shots Hit Robots 115 | . 12 35 5 63 Core Hits 62 | 1 6 13 3 39 Critical Kills . | . . . . . Critical Parts Destroyed 1 | . . 1 . . Critical Strikes 10 | . 1 1 . 8 Burn 3 | . 1 . . 2 Destroy 1 | . . 1 . . Blast 1 | . . . . 1 Sever 5 | . . . . 5 Melee Attacks 19 | . . . . 19 Impact . | . . . . . Slashing 19 | . . . . 19 Piercing . | . . . . . Sneak Attacks 2 | . . . . 2 Combat Hostiles . | . . . . . Follow-up Attacks . | . . . . . Damage Inflicted 2993 | 3 156 555 229 2050 Guns 1151 | . 156 523 46 426 Cannons 336 | . . . . 336 Explosions 1150 | . . . 150 1000 Melee 270 | . . . . 270 Ramming 86 | 3 . 32 33 18 Kinetic 533 | . . 318 . 215 Thermal 861 | . 63 205 46 547 Explosive 1150 | . . . 150 1000 Electromagnetic 93 | . 93 . . . Impact . | . . . . . Slashing 270 | . . . . 270 Piercing . | . . . . . Highest Corruption . | . . . . . Average Corruption . | . . . . . Corruption Purged . | . . . . . Corruption Blocked . | . . . . . Overload Shots . | . . . . . Overflow Damage 34 | . . . . 34 Projectiles 5 | . . . . 5 Explosions 29 | . . . . 29 Melee . | . . . . . Knockbacks 1 | . . . . 1 Impact . | . . . . . Kinetic 1 | . . . . 1 Secondary . | . . . . . Self-Inflicted Damage 373 | . . . 144 229 Shots 10 | . . . 3 7 Rammed 5 | . . . 3 2 Targets Rammed 14 | 1 . 7 3 3 Kicked 9 | 1 . 7 . 1 Crushed . | . . . . . Highest Temperature 564 | . 286 240 63 564 Average Temperature 143 | . 141 96 28 162 Received Heat Transfer 870 | . 120 249 15 486 Effects 13 | . . . . 13 Shutdowns 2 | . . . . 2 Energy Bleed 4 | . . . . 4 Interference 2 | . . . . 2 Short Circuit 3 | . . . . 3 Damage (minor) 1 | . . . . 1 Damage (core) 1 | . . . . 1 Siege Activations . | . . . . . Martial Activations . | . . . . . Shielding Activations . | . . . . . Robots Disrupted . | . . . . . Combat Hostiles . | . . . . . Robots Corrupted . | . . . . . Combat Hostiles . | . . . . . Parts Fried . | . . . . . Impact Corruptions . | . . . . . Robots Melted . | . . . . . Combat Hostiles . | . . . . . Parts Melted 2 | . . . . 2 Heat Transferred 2183 | . 259 518 111 1295 Parts Sabotaged . | . . . . . Parts Stolen . | . . . . . Parts Stripped . | . . . . . Power Chain Reactions . | . . . . . Alert | -11 -10 -9 -9 -8 ------- Run | Yrd Mat Mat Min Mat Maximum Alert Level 1 | . . . . 1 Low Security (%) 99 | 100 100 100 100 99 Level 1 . | . . . . . Level 2 . | . . . . . Level 3 . | . . . . . Level 4 . | . . . . . Level 5 . | . . . . . High Security . | . . . . . Max Security . | . . . . . Peak Influence 205 | . 60 45 65 205 Initial . | . . . . . Average 40 | . 12 11 10 80 Influence Increases 882 | . 70 133 83 596 Destroy 0b10 Robot/C 560 | . 60 100 40 360 Destroy 0b10 Robot/NC 35 | . . 5 5 25 Destroy Leader 134 | . 10 20 10 94 Successful Hack 9 | . . 7 . 2 Disable Machine 30 | . . . . 30 Destroy Structure 114 | . . 1 28 85 Influence Decreases 774 | . 70 133 83 488 Time Decay 575 | . 70 104 83 318 Lost Part 199 | . . 29 . 170 Squads Dispatched 5 | . 2 . . 3 Investigation 3 | . 1 . . 2 Extermination . | . . . . . Reinforcement 2 | . 1 . . 1 Assault . | . . . . . Garrison . | . . . . . Intercept . | . . . . . Searches Triggered . | . . . . . Construction Impeded . | . . . . . Haulers Reinforced . | . . . . . Active Scanning Responses . | . . . . . Cargo Convoy Interrupts . | . . . . . Stealth | -11 -10 -9 -9 -8 --------- Run | Yrd Mat Mat Min Mat Distress Signals 3 | . . 1 . 2 Communications Jammed . | . . . . . Distress Signals . | . . . . . Times Spotted 41 | . 5 12 2 22 Peak Tracking Total 8 | . 4 8 2 4 Tactical Retreats . | . . . . . Traps | -11 -10 -9 -9 -8 ------- Run | Yrd Mat Mat Min Mat Traps Triggered 2 | . 1 . . 1 Indirectly . | . . . . . Trap Hack Attempts . | . . . . . Triggered . | . . . . . Disarmed . | . . . . . Reprogrammed . | . . . . . Reused . | . . . . . Traps Extracted . | . . . . . Installed . | . . . . . Triggered . | . . . . . Machines | -11 -10 -9 -9 -8 ---------- Run | Yrd Mat Mat Min Mat Machines Disabled 2 | . . . . 2 Max in Single Turn 1 | . . . . 1 Machines Repaired . | . . . . . Machines Dismantled . | . . . . . Machines Sabotaged . | . . . . . Overloaded Fab Kills . | . . . . . Hacking | -11 -10 -9 -9 -8 --------- Run | Yrd Mat Mat Min Mat Machines Accessed 5 | . 2 1 . 2 Terminals 4 | . 2 1 . 1 Fabricators . | . . . . . Repair Stations . | . . . . . Recycling Units . | . . . . . Scanalyzers 1 | . . . . 1 Garrison Access . | . . . . . Total Hacks 7 | . 2 1 . 4 Successful 6 | . 2 1 . 3 Failed 1 | . . . . 1 Catastrophic . | . . . . . Database Lockouts . | . . . . . Manual 1 | . 1 . . . Terminals 4 | . 2 1 . 1 Fabricators . | . . . . . Repair Stations . | . . . . . Recycling Units . | . . . . . Scanalyzers 3 | . . . . 3 Garrison Access . | . . . . . Terminal Hacks 4 | . 2 1 . 1 Record 2 | . 2 . . . Branch Access Points 1 | . . 1 . . Zone Layout 1 | . . . . 1 Fabricator Hacks . | . . . . . Repair Station Hacks . | . . . . . Recycling Unit Hacks . | . . . . . Scanalyzer 2 | . . . . 2 Insert Component 1 | . . . . 1 Analyze 1 | . . . . 1 Garrison Access Hacks . | . . . . . Unauthorized Hacks . | . . . . . Terminals . | . . . . . Fabricators . | . . . . . Repair Stations . | . . . . . Recycling Units . | . . . . . Scanalyzers . | . . . . . Garrison Access . | . . . . . Data Cores Recovered . | . . . . . Used . | . . . . . Hacking Detections 3 | . 1 1 . 1 Full Trace Events 1 | . . . . 1 Feedback Events . | . . . . . Feedback Blocked . | . . . . . Robot Schematics Acquired . | . . . . . Robots Built . | . . . . . Authchips . | . . . . . Time . | . . . . . Total Robot Build Rating . | . . . . . Part Schematics Acquired 1 | . . . . 1 Parts Built . | . . . . . Authchips . | . . . . . Time . | . . . . . Total Part Build Rating . | . . . . . Parts Repaired . | . . . . . Time . | . . . . . Parts Recycled . | . . . . . Recycled Matter . | . . . . . Retrieved Matter . | . . . . . Retrieved Components . | . . . . . Parts Scanalyzed 1 | . . . . 1 Part Schematics Acquired 1 | . . . . 1 Parts Damaged . | . . . . . Bothacking | -11 -10 -9 -9 -8 ------------ Run | Yrd Mat Mat Min Mat Used RIF Installer . | . . . . . Robots Hacked . | . . . . . Non-combat . | . . . . . Combat . | . . . . . Robot Hacks Applied . | . . . . . Relay Couplers Released . | . . . . . Fabnet Peak Effective % . | . . . . . Robots Rewired . | . . . . . Allies Hacked . | . . . . . Hacks Repelled . | . . . . . Allies | -11 -10 -9 -9 -8 -------- Run | Yrd Mat Mat Min Mat Total Allies . | . . . . . Largest Group . | . . . . . Highest-Rated Group . | . . . . . Highest-Rated Ally . | . . . . . Total Orders . | . . . . . Ally Attacks . | . . . . . Total Damage . | . . . . . Kills . | . . . . . Allies Corrupted . | . . . . . Allies Melted . | . . . . . Intel | -11 -10 -9 -9 -8 ------- Run | Yrd Mat Mat Min Mat Active Infowar (turns) 1179 | . 262 432 . 485 Sensors 1179 | . 262 432 . 485 Robot Analysis Total . | . . . . . Derelict Logs Recovered 1 | . . . 1 . Drone Launches . | . . . . . Drone Recoveries . | . . . . . Exploration | -11 -10 -9 -9 -8 ------------- Run | Yrd Mat Mat Min Mat Turns Passed 2240 | 66 300 485 434 955 Spaces Moved 1194 | 45 165 165 379 440 Core 9 | 2 . 1 . 6 Treads . | . . . . . Legs 650 | 43 165 164 . 278 Wheels 535 | . . . 379 156 Hover . | . . . . . Flight . | . . . . . Fastest Speed 50 | 50 120 190 105 105 Average Speed 139 | 116 146 191 105 149 Slowest Speed 550 | 120 190 400 105 550 Overloaded Moves . | . . . . . Propulsion Burnouts . | . . . . . Robots Hopped . | . . . . . Potential Cave-ins . | . . . . . Cave-ins Triggered . | . . . . . Exploration Rate (%) 31 | 3 28 20 61 43 Regions Visited 4 Branch Regions 1 Pre-discovered Areas . | . . . . . Known Exits Taken 1 | . . 1 . . Unknown Exits Taken 3 | 1 1 . 1 . Scrap Searched . | . . . . . Spaces Dug . | . . . . . Terrain Destroyed 134 | . . . 38 96 Melee . | . . . . . Projectile 8 | . . . . 8 AOE 126 | . . . 38 88 Terrain Rammed . | . . . . . Walls Destroyed . | . . . . . Machines Disabled . | . . . . . Actions | -11 -10 -9 -9 -8 --------- Run | Yrd Mat Mat Min Mat Total 1568 | 55 207 277 408 621 Wait 113 | . 20 59 6 28 Move 1190 | 44 164 164 378 440 Hop . | . . . . . Pick Up 49 | 4 9 4 10 22 Fast Attach 18 | 6 1 2 1 8 Attach 25 | . 1 5 5 14 Detach 2 | . . . 1 1 Swap 16 | . 3 2 . 11 Drop 22 | . 1 1 . 20 Fire 99 | . 8 33 3 55 Melee 19 | . . . . 19 Ram 5 | . . . 3 2 Kick 9 | 1 . 7 . 1 Crush . | . . . . . Escape Stasis . | . . . . . Rewire 1 | . . . 1 . Trap . | . . . . . Miscellaneous . | . . . . . Route ------- -11/Scrapyard -10/Materials -9/Materials -9/Mines -8/Materials History --------- Turn | Location | Event 24 | -11/Scrapyard | Discovered new exit (range 15) 67 | -11/Scrapyard | Entered Materials 277 | -10/Materials | Discovered new exit (range 16) 304 | -10/Materials | Build established: Mutant 367 | -10/Materials | Entered another Materials area 367 | -9/Materials | Evolved 2 slots: Utility x2 643 | -9/Materials | Identified exit to Mines 827 | -9/Materials | Core integrity fell below 50% 852 | -9/Materials | Entered Mines 853 | -9/Mines | Assembled infested the area 882 | -9/Mines | Lost 7 parts (2p3n1u1w) 916 | -9/Mines | Met a Derelict bent on vengeance 983 | -9/Mines | Learned Materials terminal intel 1273 | -9/Mines | Discovered new exit (range 5) 1286 | -9/Mines | Entered Materials 1286 | -8/Materials | Evolved 2 slots: Power x1, Utility x1 1287 | -8/Materials | Loaded intel: 12 terminal locations 1511 | -8/Materials | Lost 3 parts (2p1w) 1846 | -8/Materials | Core integrity fell below 50% 1913 | -8/Materials | Lost 3 parts (1p1u1w) 2015 | -8/Materials | Lost 4 parts (2p2u) 2209 | -8/Materials | Core integrity fell below 20% 2241 | -8/Materials | Destroyed by X-62 Marksman with Gauss Rifle Last Messages --------------- 02186_ W-25 Informer sends out distress signal. 02190_ Hpw. Shotgun destroyed. 02193_ Slug penetrates Atomic Centrifuge. 02202_ X-62 Marksman Imp. Deuterium Engine severed. 02202_ Slug penetrates Wall. 02205_ Penetrated by Slug. 02205_ Critical hit (Burn: +37). 02208_ X-62 Marksman Imp. Carbon-fiber Leg severed. 02208_ Penetrated by Slug. 02211_ Blade Saw destroyed. 02214_ Penetrated by Slug. 02214_ Imp. Ion Engine destroyed. 02214_ Imp. Carbon-fiber Leg destroyed. 02217_ X-62 Marksman Gauss Rifle blasted off. 02221_ X-62 Marksman destroyed. 02225_ Penetrated by Slug. 02229_ X-62 Marksman knocked back. 02235_ Penetrated by Slug. 02238_ Acquired Imp. Carbon-fiber Leg. 02238_ Penetrated by Slug. Map ----- +----------------------------------------------------+ | ???????# """"" #??????????????????????????? | | ???????# """ #??????????????????????????? | | ######## #??????????????????????????? | | ## #??????????????????????????? | | ## ] #??????????????????????????? | | ## ! #??????????????????????????? | | ## !!%= #########??????????????????? | | #####+#### #??????????????????? | | # =[! #??????????H???????? | | # % #??????????????????? | | + T #??????????????????? | | # #??????????????????? | | + #??????????????????? | | #####+####] #??????????????????? | | #??? ??### ###??????????????????? | | #??? ????# #????????????????"T"?? | | [ #??!! ????# #????????????????"""?? | | #??!! ????# #??########??????????? | | #######? ????# #??# #??????????? | | ???????? ????# #??# #??????????? | | ???????########### ##?# #??????????? | | ????????# !# #?# #??????????? | | ????????# # #######+## #????? | | ????????# + =*u!|=*!= #????? | | ????????# ! # #;x####### #????? | | ????????# # #[!@[ #???? ??????? | | ????????###############=%%%!#?????###?????? | | ??????????????????????# #?????????????? | | ??????????????????????# #?????????????? | | ??????????????????????# "" #?????????????? | | ??????????????????????# "" #?????????????? | | ??????????????????????# "" #?????????????? | | ??????????????????????#######?????????????? | | ??????????????????????????????????????????? | | ??????????????????????????????????????????? | | ??????????????????????????????????????????? | | ??????????????????????????????????????????? | | ??????????????????????????????????????????? | | ??????????????????????????????????????????? | | ??????????????????????????????????????????? | | ??????????????????????????????????????"T"?? | | ??????????????????????????????????????????? | | ??????????????????????????????????????????? | | ??????????????????????????????????????????? | | ??????????????????????????????????????????? | | ??????????????????????????????????????????? | | ??????????????????????????????????????????? | | ??????????????????????????????????????????? | | ??????????????????????????????????????????? | | ??????????????????????????????????????????? | +----------------------------------------------------+ Best States ------------- Heat Dissipation 31 Energy Generation 23 Energy Capacity 440 Matter Stores 350 Matter Capacity 350 Sight Range 16 Robot Scan Range 14 Terrain Scan Density 10 Armor Coverage 150 Utility Shielding 33 Evasion (%) 55 Targeting Accuracy 6 Melee Accuracy 5 Item Schematics ----------------- Imp. Carbon-fiber Leg | -8/Materials | Scanalyzed Robot Schematics ------------------ None Fabricated ------------ Nothing Repaired ---------- Nothing Alien Tech Used ----------------- None Achievements -------------- None Challenges ------------ None Game ------ Seed HeavyTrapCycler Manual? 0 Play Time 00:31:04 Cumulative 45.9 hours Start 2025.09.10 @ 23:53:10 End 2025.09.11 @ 00:22:20 Sessions 1 Manual Loads 0 Difficulty Rogue Special Mode None Game No. 52 Rogue 52 Adventurer 0 Explorer 0 Win Type - Total 0 Types 0/0/0/0/0/0/0/0/0/0 Lore% 16 Gallery% 28 Achievement% 26 Wizard Run 0 Options --------- Layout 1 ASCII 0 Keyboard 0 Movement Numpad Keybinds 0 Fullscreen 1 Font 32/SmallcapsGlow Map View 77x35 Zoom Use 0% Tactical HUD 1 Map Filters NONE Filters NONE Steam 1 RUN: f68ca002-68ad-4d29-b6cd-89c70f658cda